fUSD/lending_fUSD_20260613
["ID","MTS","AMOUNT","RATE_DAILY","PERIOD"]
[424975895,1781365844000,-419.0,0.00022,2]
[424975896,1781365844000,-568.0,0.00022,2]
[424975891,1781365844000,-222.0,0.00022,2]
[424975892,1781365844000,-1210.0,0.00022,2]
[424975887,1781365844000,-152.0,0.00022,2]
[424975904,1781365844000,-7718.4,0.00022126,2]
[424975890,1781365844000,-321.0,0.00022,2]
[424975877,1781365844000,-217.15233878,0.00021858,2]
[424975888,1781365844000,-1326.0,0.00022,2]
[424975878,1781365844000,-395.47717504,0.000219,2]
[424975879,1781365844000,-5000.0,0.00021918,2]
[424975876,1781365844000,-283.24,0.00021702,2]
[424975880,1781365844000,-150.0,0.00021918,2]
[424975883,1781365844000,-904.0,0.00021918,2]
[424975885,1781365844000,-206.0,0.00021976,2]
[424975884,1781365844000,-505.0,0.00021974,5]
[424975881,1781365844000,-2000.0,0.00021918,2]
[424975889,1781365844000,-2822.0,0.00022,2]
[424975894,1781365844000,-445.0,0.00022,2]
[424975893,1781365844000,-1715.585753,0.00022,2]
[424975882,1781365844000,-2000.0,0.00021918,2]
[424975886,1781365844000,-249.0,0.00022,2]
[424975941,1781365845000,-201.93286098,0.00022681,2]
[424975949,1781365845000,-198.19031994,0.00022978,2]
[424975948,1781365845000,-505.0,0.00022769,6]
[424975939,1781365845000,-154.97261272,0.00022681,2]
[424975931,1781365845000,-419.0,0.00022335,2]
[424975936,1781365845000,-500.0,0.00022493,2]
[424975929,1781365845000,-150.0,0.00022335,2]
[424975946,1781365845000,-200.0,0.0002272,2]
[424975930,1781365845000,-150.0,0.00022335,2]
[424975940,1781365845000,-199.41706893,0.00022681,2]
[424975943,1781365845000,-242.15909246,0.00022681,2]
[424975960,1781365845000,-419.0,0.00023,2]
[424975942,1781365845000,-151.0,0.00022681,2]
[424975945,1781365845000,-151.0,0.0002272,2]
[424975947,1781365845000,-2586.85809042,0.0002272,2]
[424975950,1781365845000,-285.0,0.00022997,2]
[424975952,1781365845000,-152.0,0.00023,2]
[424975958,1781365845000,-1715.585753,0.00023,2]
[424975953,1781365845000,-1326.0,0.00023,2]
[424975955,1781365845000,-321.0,0.00023,2]
[424975951,1781365845000,-249.0,0.00023,2]
[424975935,1781365845000,-835.71,0.00022466,2]
[424975944,1781365845000,-151.0,0.00022681,2]
[424975928,1781365845000,-150.0,0.00022335,2]
[424975917,1781365845000,-499.0,0.00022191,2]
[424975934,1781365845000,-22395.90301406,0.00022438,2]
[424975907,1781365845000,-154.97261272,0.00022133,2]
[424975909,1781365845000,-194.72792766,0.00022133,2]
[424975908,1781365845000,-199.41706893,0.00022133,2]
[424975910,1781365845000,-151.0,0.00022133,2]
[424975914,1781365845000,-200.0,0.00022172,2]
[424975912,1781365845000,-233.5188934,0.00022133,2]
[424975911,1781365845000,-151.0,0.00022133,2]
[424975913,1781365845000,-151.0,0.00022172,2]
[424975915,1781365845000,-2494.55939288,0.00022172,2]
[424975916,1781365845000,-295.67522621,0.00022173,2]
[424975919,1781365845000,-1359.0,0.00022335,2]
[424975918,1781365845000,-3557.0,0.00022335,2]
[424975924,1781365845000,-150.0,0.00022335,2]
[424975959,1781365845000,-445.0,0.00023,2]
[424975923,1781365845000,-150.0,0.00022335,2]
[424975920,1781365845000,-383.0,0.00022335,2]
[424975925,1781365845000,-150.0,0.00022335,2]
[424975921,1781365845000,-1275.0,0.00022335,2]
[424975926,1781365845000,-6076.0,0.00022335,2]
[424975927,1781365845000,-150.0,0.00022335,2]
[424975937,1781365845000,-588.0,0.00022586,2]
[424975938,1781365845000,-252.36257952,0.00022681,2]
[424975933,1781365845000,-206.556683,0.000224,7]
[424975932,1781365845000,-1579.9,0.00022353,2]
[424975954,1781365845000,-2822.0,0.00023,2]
[424975922,1781365845000,-1228.0,0.00022335,2]
[424975961,1781365845000,-568.0,0.00023,2]
[424975986,1781365845000,-1173.03341147,0.00023368,7]
[424975987,1781365845000,-2000.0,0.00023382,2]
[424975989,1781365845000,-904.0,0.00023382,2]
[424975993,1781365845000,-154.97261272,0.00023777,2]
[424975992,1781365845000,-252.36257952,0.00023777,2]
[424976003,1781365845000,-165.86265129,0.000239,2]
[424975994,1781365845000,-199.41706893,0.00023777,2]
[424975995,1781365845000,-217.15233878,0.00023777,2]
[424975996,1781365845000,-250.76960971,0.00023777,2]
[424975998,1781365845000,-260.4103811,0.00023777,2]
[424976000,1781365845000,-200.0,0.00023816,2]
[424976001,1781365845000,-2781.82699784,0.00023816,2]
[424976002,1781365845000,-2069.36998192,0.00023868,7]
[424975997,1781365845000,-151.0,0.00023777,2]
[424976004,1781365845000,-249.0,0.00024,2]
[424976006,1781365845000,-1326.0,0.00024,2]
[424976010,1781365845000,-1210.0,0.00024,2]
[424976005,1781365845000,-152.0,0.00024,2]
[424976009,1781365845000,-222.0,0.00024,2]
[424976008,1781365845000,-321.0,0.00024,2]
[424976007,1781365845000,-2822.0,0.00024,2]
[424976011,1781365845000,-1715.585753,0.00024,2]
[424975957,1781365845000,-1210.0,0.00023,2]
[424975988,1781365845000,-2000.0,0.00023382,2]
[424975985,1781365845000,-444.49654371,0.00023368,7]
[424975999,1781365845000,-151.0,0.00023816,2]
[424975990,1781365845000,-166.65960565,0.00023452,2]
[424975991,1781365845000,-505.0,0.00023564,7]
[424975963,1781365845000,-2065.0,0.00023,2]
[424975962,1781365845000,-486.0,0.00023,2]
[424975964,1781365845000,-403.0,0.00023,2]
[424975965,1781365845000,-344.0,0.00023,2]
[424975966,1781365845000,-150.0,0.00023014,2]
[424975967,1781365845000,-1227.0,0.00023162,2]
[424975971,1781365845000,-747.80937859,0.00023228,2]
[424975968,1781365845000,-225.18697532,0.00023227,2]
[424975969,1781365845000,-599.60298507,0.00023228,2]
[424975970,1781365845000,-151.0,0.00023228,2]
[424975972,1781365845000,-252.36257952,0.00023229,2]
[424975956,1781365845000,-222.0,0.00023,2]
[424975983,1781365845000,-2682.57183977,0.00023268,2]
[424975974,1781365845000,-199.41706893,0.00023229,2]
[424975975,1781365845000,-209.40437684,0.00023229,2]
[424975978,1781365845000,-151.0,0.00023229,2]
[424975976,1781365845000,-151.0,0.00023229,2]
[424975977,1781365845000,-251.11897888,0.00023229,2]
[424975979,1781365845000,-152.0,0.00023233,5]
[424975980,1781365845000,-220.0,0.00023233,5]
[424975982,1781365845000,-200.0,0.00023268,2]
[424975981,1781365845000,-151.0,0.00023268,2]
[424975984,1781365845000,-6825.85,0.00023328,7]
[424975973,1781365845000,-154.97261272,0.00023229,2]
[424976049,1781365846000,-298.5,0.00024863,2]
[424976044,1781365846000,-1000.0,0.00024658,2]
[424976046,1781365846000,-2000.0,0.00024752,2]
[424976042,1781365846000,-233.5188934,0.00024596,2]
[424976041,1781365846000,-4188.5217,0.00024368,7]
[424976043,1781365846000,-200.0,0.00024647,2]
[424976047,1781365846000,-2000.0,0.00024752,2]
[424976040,1781365846000,-3095.65373206,0.00024368,7]
[424976038,1781365846000,-2884.75459676,0.00024364,2]
[424976051,1781365846000,-154.97261272,0.00024873,2]
[424976045,1781365846000,-193.90900722,0.00024658,2]
[424976048,1781365846000,-904.0,0.00024752,2]
[424976056,1781365846000,-151.0,0.00024912,2]
[424976050,1781365846000,-252.36257952,0.00024873,2]
[424976058,1781365846000,-2991.49051684,0.00024912,2]
[424976055,1781365846000,-251.76694911,0.00024873,2]
[424976057,1781365846000,-200.0,0.00024912,2]
[424976053,1781365846000,-233.5188934,0.00024873,2]
[424976054,1781365846000,-151.0,0.00024873,2]
[424976059,1781365846000,-6825.85,0.00024992,7]
[424976061,1781365846000,-255.0,0.00025,2]
[424976062,1781365846000,-164.0,0.00025,2]
[424976064,1781365846000,-2826.21865929,0.00025,2]
[424976063,1781365846000,-1344.0,0.00025,2]
[424976052,1781365846000,-199.41706893,0.00024873,2]
[424976039,1781365846000,-22395.90301406,0.00024366,2]
[424976013,1781365846000,-419.0,0.00024,2]
[424976027,1781365846000,-605.237794,0.00024268,4]
[424976067,1781365846000,-1228.45860913,0.00025,2]
[424976014,1781365846000,-200.0,0.00024,2]
[424976012,1781365846000,-445.0,0.00024,2]
[424976015,1781365846000,-568.0,0.00024,2]
[424976026,1781365846000,-250.87384275,0.00024268,2]
[424976016,1781365846000,-486.0,0.00024,2]
[424976018,1781365846000,-403.0,0.00024,2]
[424976019,1781365846000,-344.0,0.00024,2]
[424976017,1781365846000,-2065.0,0.00024,2]
[424976022,1781365846000,-150.0,0.00024164,2]
[424976021,1781365846000,-252.0,0.00024131,2]
[424976037,1781365846000,-200.0,0.00024364,2]
[424976023,1781365846000,-674.01,0.00024174,2]
[424976024,1781365846000,-1233.63,0.00024174,2]
[424976025,1781365846000,-2171.21570457,0.00024268,2]
[424976036,1781365846000,-151.0,0.00024364,2]
[424976035,1781365846000,-505.0,0.00024359,7]
[424976029,1781365846000,-252.36257952,0.00024325,2]
[424976030,1781365846000,-154.97261272,0.00024325,2]
[424976032,1781365846000,-225.18697532,0.00024325,2]
[424976034,1781365846000,-270.0455652,0.00024325,2]
[424976033,1781365846000,-151.0,0.00024325,2]
[424976031,1781365846000,-199.41706893,0.00024325,2]
[424976028,1781365846000,-1579.9,0.00024324,2]
[424976020,1781365846000,-787.05,0.00024081,2]
[424976065,1781365846000,-332.92227884,0.00025,2]
[424976060,1781365846000,-151.0,0.00024997,7]
[424976068,1781365846000,-453.64031093,0.00025,2]
[424976100,1781365846000,-473.87076651,0.00025397,2]
[424976099,1781365846000,-826.97197236,0.00025397,2]
[424976102,1781365846000,-199.41706893,0.00025421,2]
[424976098,1781365846000,-150.0,0.00025373,2]
[424976097,1781365846000,-419.0,0.00025335,2]
[424976096,1781365846000,-150.0,0.00025335,2]
[424976101,1781365846000,-252.36257952,0.00025421,2]
[424976105,1781365846000,-200.0,0.0002546,2]
[424976107,1781365846000,-207.38,0.00025759,2]
[424976110,1781365846000,-379.0,0.00025855,2]
[424976109,1781365846000,-674.01,0.00025786,2]
[424976111,1781365846000,-505.0,0.00025949,9]
[424976113,1781365846000,-621.78829552,0.00025967,2]
[424976114,1781365846000,-151.0,0.00025967,2]
[424976115,1781365846000,-775.4783256,0.00025967,2]
[424976112,1781365846000,-302.16460183,0.00025965,2]
[424976108,1781365846000,-165.86265129,0.0002576,2]
[424976117,1781365846000,-199.41706911,0.00025969,2]
[424976118,1781365846000,-251.11897888,0.00025969,2]
[424976116,1781365846000,-252.36257952,0.00025969,2]
[424976119,1781365846000,-151.0,0.00025969,2]
[424976120,1781365846000,-200.0,0.00026,2]
[424976121,1781365846000,-200.0,0.00026008,2]
[424976066,1781365846000,-225.59966885,0.00025,2]
[424976123,1781365846000,-193.90900722,0.00026027,2]
[424976103,1781365846000,-242.15909246,0.00025421,2]
[424976104,1781365846000,-151.0,0.00025421,2]
[424976106,1781365846000,-200.49254509,0.0002572,3]
[424976094,1781365846000,-150.0,0.00025335,2]
[424976095,1781365846000,-150.0,0.00025335,2]
[424976081,1781365846000,-247.68252316,0.00025062,7]
[424976071,1781365846000,-497.92154219,0.00025,2]
[424976070,1781365846000,-573.49854041,0.00025,2]
[424976079,1781365846000,-180.07,0.00025,2]
[424976072,1781365846000,-2078.10249687,0.00025,2]
[424976078,1781365846000,-180.07,0.00025,2]
[424976075,1781365846000,-180.07,0.00025,2]
[424976073,1781365846000,-180.07,0.00025,2]
[424976080,1781365846000,-415.1627363,0.00025,2]
[424976074,1781365846000,-180.07,0.00025,2]
[424976076,1781365846000,-180.07,0.00025,2]
[424976077,1781365846000,-180.07,0.00025,2]
[424976069,1781365846000,-432.80448742,0.00025,2]
[424976082,1781365846000,-186.85282492,0.00025062,7]
[424976084,1781365846000,-2569.25085215,0.00025111,2]
[424976091,1781365846000,-1228.0,0.00025335,2]
[424976085,1781365846000,-505.0,0.00025154,8]
[424976090,1781365846000,-1275.0,0.00025335,2]
[424976092,1781365846000,-150.0,0.00025335,2]
[424976093,1781365846000,-6076.0,0.00025335,2]
[424976087,1781365846000,-3557.0,0.00025335,2]
[424976083,1781365846000,-4591.26816125,0.00025111,2]
[424976088,1781365846000,-1359.0,0.00025335,2]
[424976086,1781365846000,-151.0,0.00025332,7]
[424976089,1781365846000,-383.0,0.00025335,2]
[424976207,1781365847000,-2000.0,0.00027064,2]
[424976209,1781365847000,-2000.0,0.00027064,2]
[424976196,1781365847000,-250.0,0.0002697,2]
[424976189,1781365847000,-250.0,0.0002697,2]
[424976205,1781365847000,-2000.0,0.00027064,2]
[424976202,1781365847000,-250.0,0.0002697,2]
[424976193,1781365847000,-250.0,0.0002697,2]
[424976191,1781365847000,-250.0,0.0002697,2]
[424976187,1781365847000,-250.0,0.0002697,2]
[424976210,1781365847000,-2000.0,0.00027064,2]
[424976198,1781365847000,-250.0,0.0002697,2]
[424976212,1781365847000,-2000.0,0.00027064,2]
[424976222,1781365847000,-200.0,0.00027104,2]
[424976219,1781365847000,-270.0455652,0.00027065,2]
[424976214,1781365847000,-2000.0,0.00027064,2]
[424976218,1781365847000,-252.36257952,0.00027065,2]
[424976221,1781365847000,-1356.68175869,0.00027086,2]
[424976220,1781365847000,-1051.80794165,0.00027086,2]
[424976224,1781365847000,-2000.0,0.00027108,2]
[424976225,1781365847000,-2000.0,0.00027108,2]
[424976223,1781365847000,-2000.0,0.00027108,2]
[424976227,1781365847000,-2000.0,0.00027108,2]
[424976226,1781365847000,-2000.0,0.00027108,2]
[424976200,1781365847000,-250.0,0.0002697,2]
[424976216,1781365847000,-1494.08,0.00027064,2]
[424976185,1781365847000,-2200.0,0.000269,9]
[424976128,1781365847000,-413.5894123,0.000261,2]
[424976180,1781365847000,-1540.90873324,0.00026878,9]
[424976233,1781365847000,-1978.2498361,0.00027111,2]
[424976130,1781365847000,-2000.0,0.00026122,2]
[424976133,1781365847000,-2000.0,0.00026122,2]
[424976126,1781365847000,-413.4105877,0.000261,2]
[424976137,1781365847000,-283.24,0.00026141,2]
[424976139,1781365847000,-166.65960565,0.00026226,2]
[424976135,1781365847000,-904.0,0.00026122,2]
[424976154,1781365847000,-1190.8030448,0.000265,30]
[424976141,1781365847000,-22395.90301406,0.00026294,2]
[424976143,1781365847000,-885.06,0.00026295,2]
[424976145,1781365847000,-1579.9,0.00026296,2]
[424976149,1781365847000,-826.97197236,0.00026397,2]
[424976156,1781365847000,-252.36257952,0.00026517,2]
[424976147,1781365847000,-238.73413646,0.00026397,2]
[424976151,1781365847000,-473.87076651,0.00026397,2]
[424976160,1781365847000,-200.0,0.00026556,2]
[424976158,1781365847000,-260.4103811,0.00026517,2]
[424976166,1781365847000,-250.0,0.0002668,2]
[424976162,1781365847000,-150.0,0.00026641,2]
[424976178,1781365847000,-787.05,0.00026757,2]
[424976175,1781365847000,-206.0,0.00026755,10]
[424976168,1781365847000,-250.0,0.0002668,2]
[424976164,1781365847000,-6825.85,0.00026656,7]
[424976173,1781365847000,-505.0,0.00026744,10]
[424976170,1781365847000,-283.68375276,0.0002668,2]
[424976183,1781365847000,-1017.51131827,0.00026878,9]
[424976230,1781365847000,-2000.0,0.00027108,2]
[424976284,1781365847000,-200.0,0.00027171,2]
[424976228,1781365847000,-2000.0,0.00027108,2]
[424976258,1781365847000,-500.0,0.00027171,2]
[424976266,1781365847000,-500.0,0.00027171,2]
[424976267,1781365847000,-500.0,0.00027171,2]
[424976264,1781365847000,-500.0,0.00027171,2]
[424976262,1781365847000,-500.0,0.00027171,2]
[424976261,1781365847000,-500.0,0.00027171,2]
[424976263,1781365847000,-500.0,0.00027171,2]
[424976269,1781365847000,-200.0,0.00027171,2]
[424976279,1781365847000,-200.0,0.00027171,2]
[424976272,1781365847000,-200.0,0.00027171,2]
[424976270,1781365847000,-200.0,0.00027171,2]
[424976257,1781365847000,-500.0,0.00027171,2]
[424976271,1781365847000,-200.0,0.00027171,2]
[424976273,1781365847000,-200.0,0.00027171,2]
[424976275,1781365847000,-200.0,0.00027171,2]
[424976274,1781365847000,-200.0,0.00027171,2]
[424976278,1781365847000,-200.0,0.00027171,2]
[424976277,1781365847000,-200.0,0.00027171,2]
[424976280,1781365847000,-200.0,0.00027171,2]
[424976281,1781365847000,-200.0,0.00027171,2]
[424976282,1781365847000,-200.0,0.00027171,2]
[424976285,1781365847000,-200.0,0.00027171,2]
[424976283,1781365847000,-200.0,0.00027171,2]
[424976229,1781365847000,-2000.0,0.00027108,2]
[424976276,1781365847000,-200.0,0.00027171,2]
[424976260,1781365847000,-500.0,0.00027171,2]
[424976268,1781365847000,-460.0,0.00027171,2]
[424976256,1781365847000,-500.0,0.00027171,2]
[424976232,1781365847000,-289.37,0.00027108,2]
[424976265,1781365847000,-500.0,0.00027171,2]
[424976231,1781365847000,-2000.0,0.00027108,2]
[424976234,1781365847000,-250.0,0.00027123,2]
[424976236,1781365847000,-250.0,0.00027123,2]
[424976237,1781365847000,-266.84747052,0.00027123,2]
[424976238,1781365847000,-500.0,0.00027123,2]
[424976235,1781365847000,-250.0,0.00027123,2]
[424976241,1781365847000,-500.0,0.00027123,2]
[424976240,1781365847000,-500.0,0.00027123,2]
[424976244,1781365847000,-639.14495753,0.00027123,2]
[424976243,1781365847000,-500.0,0.00027123,2]
[424976239,1781365847000,-500.0,0.00027123,2]
[424976242,1781365847000,-532.0,0.00027123,2]
[424976253,1781365847000,-500.0,0.00027171,2]
[424976259,1781365847000,-500.0,0.00027171,2]
[424976255,1781365847000,-500.0,0.00027171,2]
[424976248,1781365847000,-500.0,0.00027171,2]
[424976249,1781365847000,-500.0,0.00027171,2]
[424976252,1781365847000,-500.0,0.00027171,2]
[424976251,1781365847000,-500.0,0.00027171,2]
[424976250,1781365847000,-500.0,0.00027171,2]
[424976254,1781365847000,-500.0,0.00027171,2]
[424976246,1781365847000,-500.0,0.00027171,2]
[424976245,1781365847000,-150.0,0.00027123,2]
[424976247,1781365847000,-500.0,0.00027171,2]
[424976320,1781365848000,-500.0,0.00027171,2]
[424976321,1781365848000,-500.0,0.00027171,2]
[424976322,1781365848000,-445.0,0.00027171,2]
[424976324,1781365848000,-250.0,0.0002726,2]
[424976323,1781365848000,-250.0,0.0002726,2]
[424976340,1781365848000,-219.53496943,0.00027278,7]
[424976319,1781365848000,-500.0,0.00027171,2]
[424976315,1781365848000,-500.0,0.00027171,2]
[424976317,1781365848000,-500.0,0.00027171,2]
[424976326,1781365848000,-250.0,0.0002726,2]
[424976318,1781365848000,-500.0,0.00027171,2]
[424976334,1781365848000,-175.31652412,0.00027278,7]
[424976337,1781365848000,-167.92788188,0.00027278,7]
[424976335,1781365848000,-158.01809255,0.00027278,7]
[424976333,1781365848000,-204.18360629,0.00027278,7]
[424976328,1781365848000,-250.0,0.0002726,2]
[424976327,1781365848000,-250.0,0.0002726,2]
[424976331,1781365848000,-158.43930137,0.00027278,7]
[424976329,1781365848000,-250.0,0.0002726,2]
[424976336,1781365848000,-157.79599371,0.00027278,7]
[424976330,1781365848000,-10000.0,0.00027271,2]
[424976332,1781365848000,-158.53863744,0.00027278,7]
[424976338,1781365848000,-206.05733662,0.00027278,7]
[424976347,1781365848000,-171.09641639,0.00027355,7]
[424976316,1781365848000,-500.0,0.00027171,2]
[424976325,1781365848000,-250.0,0.0002726,2]
[424976310,1781365848000,-500.0,0.00027171,2]
[424976288,1781365848000,-200.0,0.00027171,2]
[424976309,1781365848000,-500.0,0.00027171,2]
[424976286,1781365848000,-200.0,0.00027171,2]
[424976290,1781365848000,-200.0,0.00027171,2]
[424976289,1781365848000,-200.0,0.00027171,2]
[424976287,1781365848000,-200.0,0.00027171,2]
[424976292,1781365848000,-200.0,0.00027171,2]
[424976294,1781365848000,-200.0,0.00027171,2]
[424976293,1781365848000,-200.0,0.00027171,2]
[424976291,1781365848000,-200.0,0.00027171,2]
[424976295,1781365848000,-200.0,0.00027171,2]
[424976297,1781365848000,-200.0,0.00027171,2]
[424976298,1781365848000,-200.0,0.00027171,2]
[424976299,1781365848000,-200.0,0.00027171,2]
[424976300,1781365848000,-200.0,0.00027171,2]
[424976296,1781365848000,-200.0,0.00027171,2]
[424976301,1781365848000,-200.0,0.00027171,2]
[424976302,1781365848000,-200.0,0.00027171,2]
[424976308,1781365848000,-500.0,0.00027171,2]
[424976306,1781365848000,-169.0,0.00027171,2]
[424976304,1781365848000,-200.0,0.00027171,2]
[424976305,1781365848000,-200.0,0.00027171,2]
[424976313,1781365848000,-500.0,0.00027171,2]
[424976311,1781365848000,-500.0,0.00027171,2]
[424976303,1781365848000,-200.0,0.00027171,2]
[424976307,1781365848000,-500.0,0.00027171,2]
[424976314,1781365848000,-500.0,0.00027171,2]
[424976312,1781365848000,-500.0,0.00027171,2]
[424976346,1781365848000,-220.52140392,0.00027355,7]
[424976368,1781365848000,-158.62168696,0.00027376,7]
[424976343,1781365848000,-169.3554011,0.00027349,7]
[424976375,1781365848000,-158.77038949,0.00027376,7]
[424976379,1781365848000,-193.90900722,0.00027396,2]
[424976372,1781365848000,-186.96864129,0.00027376,7]
[424976378,1781365848000,-154.30415439,0.00027376,7]
[424976382,1781365848000,-500.0,0.00027397,2]
[424976380,1781365848000,-551.31464824,0.00027397,7]
[424976381,1781365848000,-500.0,0.00027397,2]
[424976377,1781365848000,-151.54957134,0.00027376,7]
[424976383,1781365848000,-500.0,0.00027397,2]
[424976384,1781365848000,-500.0,0.00027397,2]
[424976387,1781365848000,-500.0,0.00027397,2]
[424976386,1781365848000,-500.0,0.00027397,2]
[424976385,1781365848000,-500.0,0.00027397,2]
[424976389,1781365848000,-500.0,0.00027397,2]
[424976388,1781365848000,-500.0,0.00027397,2]
[424976390,1781365848000,-500.0,0.00027397,2]
[424976392,1781365848000,-320.15154286,0.00027397,2]
[424976391,1781365848000,-500.0,0.00027397,2]
[424976393,1781365848000,-315.91384434,0.00027397,7]
[424976394,1781365848000,-193.70126859,0.00027397,2]
[424976396,1781365848000,-308.31010225,0.00027397,30]
[424976399,1781365848000,-150.0,0.00027397,2]
[424976397,1781365848000,-150.0,0.00027397,2]
[424976395,1781365848000,-500.0,0.00027397,2]
[424976398,1781365848000,-150.0,0.00027397,2]
[424976374,1781365848000,-173.20331515,0.00027376,7]
[424976373,1781365848000,-152.37254099,0.00027376,7]
[424976339,1781365848000,-155.54782315,0.00027278,7]
[424976371,1781365848000,-184.44853073,0.00027376,7]
[424976342,1781365848000,-172.78105842,0.00027278,7]
[424976345,1781365848000,-150.31193401,0.00027355,7]
[424976341,1781365848000,-193.75385614,0.00027278,7]
[424976344,1781365848000,-185.52745689,0.00027349,7]
[424976349,1781365848000,-188.00895305,0.00027355,7]
[424976350,1781365848000,-150.54362776,0.00027355,7]
[424976348,1781365848000,-202.98934387,0.00027355,7]
[424976376,1781365848000,-173.26868396,0.00027376,7]
[424976356,1781365848000,-182.10022819,0.00027371,2]
[424976354,1781365848000,-212.22772635,0.00027355,7]
[424976353,1781365848000,-173.40575878,0.00027355,5]
[424976358,1781365848000,-168.12864611,0.00027371,7]
[424976359,1781365848000,-246.15012581,0.00027371,7]
[424976352,1781365848000,-153.29374548,0.00027355,7]
[424976357,1781365848000,-164.61095598,0.00027371,7]
[424976351,1781365848000,-184.71385623,0.00027355,7]
[424976366,1781365848000,-177.47327719,0.00027371,7]
[424976364,1781365848000,-191.28387385,0.00027371,7]
[424976367,1781365848000,-168.91863464,0.00027376,7]
[424976365,1781365848000,-201.88600849,0.00027371,7]
[424976362,1781365848000,-153.07207807,0.00027371,7]
[424976370,1781365848000,-161.66121623,0.00027376,7]
[424976369,1781365848000,-157.55030641,0.00027376,7]
[424976361,1781365848000,-271.90633498,0.00027371,7]
[424976360,1781365848000,-199.96388334,0.00027371,7]
[424976355,1781365848000,-199.68649325,0.00027371,7]
[424976363,1781365848000,-160.19077579,0.00027371,7]
[424976436,1781365849000,-945.39,0.0002755,30]
[424976440,1781365849000,-743.22,0.0002755,2]
[424976437,1781365849000,-295.96,0.0002755,30]
[424976438,1781365849000,-356.05,0.0002755,2]
[424976435,1781365849000,-505.0,0.00027538,10]
[424976430,1781365849000,-626.09,0.000274,2]
[424976434,1781365849000,-500.0,0.000275,7]
[424976439,1781365849000,-9737.06,0.0002755,30]
[424976432,1781365849000,-626.09,0.000274,2]
[424976431,1781365849000,-626.09,0.000274,2]
[424976433,1781365849000,-626.09,0.000274,2]
[424976441,1781365849000,-1176.76,0.0002755,30]
[424976457,1781365849000,-280.03725111,0.00027613,2]
[424976448,1781365849000,-250.0,0.0002755,2]
[424976443,1781365849000,-250.0,0.0002755,2]
[424976445,1781365849000,-250.0,0.0002755,2]
[424976449,1781365849000,-10776.29,0.0002755,30]
[424976447,1781365849000,-250.0,0.0002755,2]
[424976446,1781365849000,-250.0,0.0002755,2]
[424976444,1781365849000,-250.0,0.0002755,2]
[424976450,1781365849000,-505.0,0.00027578,2]
[424976451,1781365849000,-356.05,0.0002758,7]
[424976453,1781365849000,-809.77,0.000276,7]
[424976460,1781365849000,-743.22,0.00027641,2]
[424976429,1781365849000,-626.09,0.000274,2]
[424976442,1781365849000,-3405.25,0.0002755,30]
[424976427,1781365849000,-179.88861013,0.00027397,7]
[424976413,1781365849000,-150.0,0.00027397,2]
[424976420,1781365849000,-1500.0,0.00027397,2]
[424976452,1781365849000,-743.22,0.0002758,7]
[424976403,1781365849000,-150.0,0.00027397,2]
[424976405,1781365849000,-150.0,0.00027397,2]
[424976402,1781365849000,-150.0,0.00027397,2]
[424976400,1781365849000,-150.0,0.00027397,2]
[424976404,1781365849000,-150.0,0.00027397,2]
[424976401,1781365849000,-150.0,0.00027397,2]
[424976406,1781365849000,-150.0,0.00027397,2]